[Event "98th Caplin Hastings Masters 2024-25"]
[Site "Hastings"]
[Date "2024.12.31"]
[Round "6.7"]
[White "Adams, Henry"]
[Black "Kovchan, Alexander"]
[Result "0-1"]
[ECO "D73"]
[WhiteElo "1991"]
[BlackElo "2455"]
[Annotator "ChessBase"]
[PlyCount "78"]
[EventDate "2024.12.23"]
[EventType "swiss"]
[EventCountry "ENG"]
[SourceTitle "playchess.com"]
[Source "ChessBase"]
[SourceQuality "1"]
[TimeControl "5400+30"]

1. d4 {[%emt 0:00:20]} Nf6 {[%emt 0:00:05]} 2. Nf3 {[%emt 0:00:05]} g6 {[%emt 0:00:07]} 3. g3 {[%emt 0:00:25]} d5 {[%emt 0:00:27]} 4. Bg2 {[%emt 0:00:06]} c6 {[%emt 0:00:05]} 5. O-O {[%emt 0:00:29]} Bg7 {[%emt 0:00:04]} 6. c4 {[%emt 0:00:45]} dxc4 {[%emt 0:00:17]} 7. Ne5 {[%emt 0:03:48]} Ng4 {[%emt 0:01:10]} 8. Nxg4 {[%emt 0:07:15]} Bxg4 {[%emt 0:00:23]} 9. d5 {[%emt 0:01:21]} cxd5 {[%emt 0:15:06]} 10. Bxd5 {[%emt 0:10:38]} Bxe2 {[%emt 0:05:13]} 11. Bxf7+ {[%emt 0:07:28]} Kxf7 {[%emt 0:00:13]} 12. Qxe2 {[%emt 0:00:04]} Qd3 {[%emt 0:00:42]} 13. Qg4 {[%emt 0:01:00]} Nc6 {[%emt 0:00:31]} 14. Rd1 {[%emt 0:23:26]} Ne5 {[%emt 0:00:35]} 15. Rxd3 {[%emt 0:00:24]} Nxg4 {[%emt 0:00:07]} 16. Rf3+ {[%emt 0:00:03]} Bf6 {[%emt 0:05:21]} 17. Bf4 {[%emt 0:08:55]} Kg7 {[%emt 0:28:19]} 18. Nc3 {[%emt 0:06:08]} g5 {[%emt 0:02:12]} 19. h3 {[%emt 0:03:47]} gxf4 {[%emt 0:01:22]} 20. hxg4 {[%emt 0:00:15]} fxg3 {[%emt 0:00:04]} 21. Rxg3 {[%emt 0:01:46]} Rhf8 {[%emt 0:03:14]} 22. Re3 {[%emt 0:02:41]} Rad8 {[%emt 0:01:18]} 23. Rae1 {[%emt 0:03:53]} Bh4 {[%emt 0:08:13]} 24. R1e2 {[%emt 0:02:26]} Rd3 {[%emt 0:00:48]} 25. Re4 {[%emt 0:09:22]} Rdf3 {[%emt 0:00:13]} 26. Rxc4 {[%emt 0:02:00]} Bxf2+ {[%emt 0:01:12]} 27. Kg2 {[%emt 0:00:42]} Bh4 {[%emt 0:00:14]} 28. Ne4 {[%emt 0:02:15]} b6 {[%emt 0:08:48]} 29. Rc7 {[%emt 0:00:27]} a5 {[%emt 0:01:10]} 30. g5 {[%emt 0:00:58]} R3f7 {[%emt 0:04:11]} 31. Kh3 {[%emt 0:00:23]} Rf3+ {[%emt 0:00:05]} 32. Kg2 {[%emt 0:00:08]} R3f5 {[%emt 0:01:10]} 33. Rxe7+ {[%emt 0:00:59]} Kh8 {[%emt 0:00:01]} 34. Nd6 {[%emt 0:01:12]} Rxg5+ {[%emt 0:02:55]} 35. Kh3 {[%emt 0:00:01]} Rh5 {[%emt 0:00:18]} 36. Nf7+ {[%emt 0:00:40]} Kg8 {[%emt 0:02:30]} 37. Kg4 {[%emt 0:01:53]} Bxe7 {[%emt 0:00:21]} 38. Rxe7 {[%emt 0:00:09]} Rxf7 {[%emt 0:01:08]} 39. Re8+ {[%emt 0:00:06]} Rf8 {[%emt 0:00:06]} 0-1

[Event "98th Caplin Hastings Masters 2024-25"]
[Site "Hastings"]
[Date "2024.12.31"]
[Round "6.8"]
[White "Samarasinghe Jude, Ranga"]
[Black "Gormally, Daniel W"]
[Result "1/2-1/2"]
[ECO "B87"]
[WhiteElo "1944"]
[BlackElo "2424"]
[Annotator "TA"]
[PlyCount "76"]
[EventDate "2024.12.23"]
[EventType "swiss"]
[EventCountry "ENG"]
[SourceTitle "playchess.com"]
[Source "ChessBase"]
[SourceQuality "1"]
[TimeControl "5400+30"]

{[%evp 15,76,0,6,-9,-16,-45,-56,-72,-56,-68,14,14,0,0,0,-99,-90,-141,-132,-129,-122,-122,-104,-117,-113,-116,-128,-154,-139,-177,-175,-351,-344,-336,-318,-312,-238,-222,-237,-217,-160,-152,-114,-174,-194,-180,0,0,0,0,0,0,0,0,0,0,0,0,0,0,0,0,0]} 1. e4 {[%emt 0:01:46]} c5 {[%emt 0:00:09]} 2. Nf3 {[%emt 0:00:06]} d6 {[%emt 0:00:05]} 3. d4 {[%emt 0:00:05]} cxd4 {[%emt 0:00:04]} 4. Nxd4 {[%emt 0:00:03]} Nf6 {[%emt 0:00:06]} 5. Nc3 {[%emt 0:00:05]} a6 {[%emt 0:00:44]} 6. Bc4 {[%emt 0:02:02]} e6 {[%emt 0:01:10]} 7. Bb3 {[%emt 0:00:36]} b5 {[%emt 0:00:50]} 8. f3 {[%emt 0:01:26]} Nbd7 {[%emt 0:02:50]} 9. g4 {[%emt 0:09:54]} Nc5 {[%emt 0:02:48]} 10. Bg5 {[%emt 0:04:14]} Bb7 {[%emt 0:02:59]} 11. h4 {[%emt 0:04:15] Black is slightly better.} h6 {[%emt 0:03:38]} 12. Be3 {[%emt 0:00:31]} e5 {[%emt 0:06:47]} (12... Rc8 $15) 13. Nf5 $11 {[%emt 0:05:36]} Nxb3 {[%emt 0:00:11]} 14. axb3 {[%emt 0:00:03]} g6 {[%emt 0:03:08]} 15. Nxh6 {[%emt 0:04:17]} d5 $1 $36 {[%emt 0:07:00][%mdl 2048] Black is really pushing.} (15... Bxh6 16. g5 $11) (15... Rxh6 $2 16. Bxh6 (16. g5 b4 $11) 16... Bxh6 17. g5 $18) 16. exd5 {[%emt 0:02:02] [#]} b4 $1 {[%emt 0:06:04]} (16... Bxh6 17. Bxh6 Nxd5 (17... Rxh6 18. g5 $11) 18. Nxd5 Qxd5 19. Qxd5 Bxd5 20. Bg7 $14) 17. Ne4 {[%emt 0:08:33]} Nxe4 {[%emt 0:06:11]} (17... Rxh6 $2 18. Nxf6+ (18. Bg5 Bg7 $18) 18... Qxf6 19. g5 $18) 18. Nxf7 {[%emt 0:00:22]} Rxh4 {[%emt 0:04:49]} (18... Kxf7 19. fxe4 Be7 20. Qf3+ Kg7 21. h5 Bh4+ 22. Kd1 $15) 19. Rf1 {[%emt 0:06:21]} Kxf7 {[%emt 0:00:58]} 20. fxe4+ {[%emt 0:00:07]} Kg8 {[%emt 0:00:39]} 21. Qf3 {[%emt 0:00:16] Inhibits Rh3.} Qd7 {[%emt 0:01:51][%cal Of8g7] Inhibits Qf7+.} 22. Bg5 {[%emt 0:04:34]} Rxg4 {[%emt 0:05:30]} 23. Qe3 {[%emt 0:04:54]} (23. Bd2) 23... Rc8 $19 {[%emt 0:08:23]} 24. O-O-O {[%emt 0:03:03] [#]} Rg2 $1 {[%emt 0:00:33]} 25. Rd2 {[%emt 0:00:04]} Bc5 {[%emt 0:05:16]} 26. Rxg2 {[%emt 0:03:28]} Bxe3+ {[%emt 0:00:05]} 27. Bxe3 {[%emt 0:00:04]} Kg7 {[%emt 0:07:54] Hoping for ...Qh3.} 28. Bg5 {[%emt 0:01:24]} Rf8 {[%emt 0:04:43]} 29. Bh6+ {[%emt 0:00:08]} Kxh6 {[%emt 0:00:01]} 30. Rxf8 {[%emt 0:00:08]} Qe7 $2 {[%emt 0:03:17]} ({Black should try} 30... Kg7 $19 31. Rf3 Qe7) 31. Rh8+ $11 {[%emt 0:00:57] The position is equal.} Kg7 {[%emt 0:00:06]} 32. Rgh2 {[%emt 0:00:03] The board is on fire.} Qc5 {[%emt 0:02:38] Strongly threatening ...Qg1+.} 33. R2h7+ {[%emt 0:01:24]} Kf6 {[%emt 0:00:07] ...Qg1+ is the strong threat.} 34. Rxb7 {[%emt 0:00:10] Black must now prevent Kb1.} Qg1+ {[%emt 0:00:07]} 35. Kd2 {[%emt 0:00:26]} Qd4+ {[%emt 0:00:04]} (35... Qf2+ 36. Kd1 Qf3+ 37. Kc1 Qf1+ 38. Kd2 Qf4+ 39. Kd1 Qf3+ (39... Qxe4 40. Rf8+ Kg5 41. Rbf7 $11) 40. Kd2 (40. Kc1 Qf1+ 41. Kd2 Qf4+ 42. Kd1 Qxe4 $11) 40... Qf4+ 41. Kd3 Qf3+ 42. Kc4 Qxe4+ 43. Kc5) 36. Kc1 {[%emt 0:00:35] Threatens to win with Kb1.} Qg1+ {[%emt 0:02:59]} 37. Kd2 {[%emt 0:00:26]} Qf2+ {[%emt 0:00:16]} 38. Kd1 {[%emt 0:00:32] Rf8+ would kill now.} Qf1+ {[%emt 0:14:30] Black had all chances to win.   Weighted Error Value: White=0.25 (precise) /Black=0.20 (precise) .  Missed win:     	---       	Black=1      Mistake:       	White=4     	Black=1      Inaccurate:     	White=1     	---        OK:         	White=9     	Black=11     Best:        	White=6     	Black=6      Strong:       	---       	Black=3} 1/2-1/2

[Event "98th Caplin Hastings Masters 2024-25"]
[Site "Hastings"]
[Date "2024.12.31"]
[Round "6.9"]
[White "Balaji, Aaravamudhan"]
[Black "Gu In-Jung"]
[Result "1-0"]
[ECO "D35"]
[WhiteElo "2364"]
[BlackElo "1987"]
[Annotator "TA"]
[PlyCount "65"]
[EventDate "2024.12.23"]
[EventType "swiss"]
[EventCountry "ENG"]
[SourceTitle "playchess.com"]
[Source "ChessBase"]
[SourceQuality "1"]
[TimeControl "5400+30"]

{[%evp 12,65,25,16,26,27,24,22,16,1,36,26,60,29,43,15,16,25,24,22,41,40,49,42,45,46,50,40,52,54,54,38,42,43,217,239,326,340,809,813,899,469,470,493,497,410,1109,1035,29989,29988,29989,29990,29991,29992,29992,29993]} 1. d4 {[%emt 0:00:08]} d5 {[%emt 0:01:47]} 2. c4 {[%emt 0:00:14]} e6 {[%emt 0:00:06]} 3. Nc3 {[%emt 0:00:07]} Nf6 {[%emt 0:00:05]} 4. cxd5 {[%emt 0:00:06]} exd5 {[%emt 0:00:05]} 5. Bg5 {[%emt 0:00:06]} Be7 {[%emt 0:00:10]} 6. e3 {[%emt 0:00:06]} h6 {[%emt 0:00:07]} 7. Bh4 {[%emt 0:00:06]} Bg4 {[%emt 0:00:08]} 8. Qc2 {[%emt 0:01:39]} O-O {[%emt 0:00:47]} 9. h3 {[%emt 0:11:41]} Be6 {[%emt 0:00:04] The position is equal.} 10. Bd3 {[%emt 0:01:42]} Nbd7 {[%emt 0:04:07]} 11. Nge2 {[%emt 0:02:36]} Ne8 {[%emt 0:06:40]} 12. Bxe7 {[%emt 0:07:26]} Qxe7 {[%emt 0:00:22]} 13. O-O {[%emt 0:00:19]} Nd6 {[%emt 0:02:04]} 14. Nf4 {[%emt 0:01:35]} c6 {[%emt 0:01:33]} 15. Rae1 {[%emt 0:00:25]} Qf6 {[%emt 0:03:31]} 16. f3 {[%emt 0:06:34]} Rfe8 {[%emt 0:08:12]} 17. Qf2 {[%emt 0:05:44]} Nf8 {[%emt 0:02:04]} 18. g4 {[%emt 0:02:16]} g6 {[%emt 0:17:06] Prevents Nh5.} 19. Kg2 {[%emt 0:12:44]} b5 {[%emt 0:00:25]} 20. Nce2 {[%emt 0:03:27][%cal Bc3e2,Be2g3,Bg3h1][%mdl 32] aiming for e4.} Bd7 {[%emt 0:01:48]} 21. Ng3 {[%emt 0:04:36][%cal Og3h5]} Ne6 {[%emt 0:01:10]} 22. Nxe6 {[%emt 0:06:06]} Qxe6 {[%emt 0:03:55] [#] Black cannot hold the game after this.} ({Black should try} 22... Rxe6 $14 23. e4 dxe4 24. fxe4 Qxf2+ 25. Rxf2 Rd8) 23. e4 $18 {[%emt 0:05:45][%cal Be3e4,Be4e5][%mdl 32]} h5 {[%emt 0:06:54][%cal Rh5g4,Bh6h5,Bh5h4][%mdl 32]} 24. e5 {[%emt 0:05:53]} (24. gxh5 Qxh3+ 25. Kg1 gxh5 $11) 24... Nc8 $2 {[%emt 0:03:25]} (24... h4 25. Nh1 (25. exd6 hxg3 26. Qxg3 Qf6 $18) 25... c5 26. exd6 Qxd6 27. dxc5 (27. Qxh4 c4 $18) 27... Qf6 28. Rxe8+ Rxe8) 25. f4 {[%emt 0:06:25][%cal Bf3f4,Bf4f5,Bf5f6][%mdl 32]} ({Not} 25. gxh5 Qxh3+ 26. Kg1 Ne7 $16) 25... h4 {[%emt 0:07:25]} 26. Nh1 {[%emt 0:02:04][%cal Of4f5] [#] Black must now prevent f5!} Qe7 {[%emt 0:02:54]} 27. f5 {[%emt 0:01:39]} g5 {[%emt 0:06:14]} 28. e6 {[%emt 0:02:46]} fxe6 {[%emt 0:01:21]} (28... f6 $142 29. exd7 Qxd7 30. Rxe8+ Qxe8) 29. f6 {[%emt 0:00:55]} Qf7 {[%emt 0:00:48]} 30. Qd2 {[%emt 0:00:20] White mates.} Kf8 {[%emt 0:02:20]} 31. Qxg5 {[%emt 0:00:25]} Qg8 {[%emt 0:00:05]} 32. Qh6+ {[%emt 0:00:51]} Kf7 {[%emt 0:00:08]} 33. Qh5+ {[%emt 0:00:13] Weighted Error Value: White=0.24 (precise) /Black=0.40.  Loses game:     	---       	Black=1      Mistake:       	---       	Black=2      Inaccurate:     	White=2     	Black=4      OK:         	White=6     	Black=5      Best:        	White=2     	---} 1-0

[Event "98th Caplin Hastings Masters 2024-25"]
[Site "Hastings"]
[Date "2024.12.31"]
[Round "6.10"]
[White "Bilandzic, Ante"]
[Black "Waldhausen Gordon, Frederick"]
[Result "0-1"]
[ECO "A48"]
[WhiteElo "1912"]
[BlackElo "2355"]
[Annotator "TA"]
[PlyCount "92"]
[EventDate "2024.12.23"]
[EventType "swiss"]
[EventCountry "ENG"]
[SourceTitle "playchess.com"]
[Source "ChessBase"]
[SourceQuality "1"]
[TimeControl "5400+30"]

{[%evp 17,92,0,0,0,0,-8,0,-18,0,0,5,7,0,3,30,0,0,0,0,-10,0,0,0,-6,-6,-8,-3,-6,-6,-8,-4,-12,33,33,42,37,43,37,39,-122,-122,-131,-132,-162,-141,-274,-269,-370,-345,-375,-371,-349,-289,-250,-264,-390,-375,-492,-465,-608,-582,-931,-689,-931,-919,-863,-862,-859,-859,-1137,-1058,-29980,-29981,-29990,-29991,-29991,-29992]} 1. d4 {[%emt 0:00:02]} Nf6 {[%emt 0:00:03]} 2. Nf3 {[%emt 0:00:04]} g6 {[%emt 0:00:04]} 3. Bf4 {[%emt 0:00:04]} Bg7 {[%emt 0:00:04]} 4. e3 {[%emt 0:00:02]} d6 {[%emt 0:00:12]} 5. h3 {[%emt 0:00:04]} O-O {[%emt 0:00:07]} 6. Nbd2 {[%emt 0:00:04]} Nbd7 {[%emt 0:00:12]} 7. Be2 {[%emt 0:00:38]} b6 {[%emt 0:00:11]} 8. O-O {[%emt 0:00:24]} Bb7 {[%emt 0:00:04]} 9. c3 {[%emt 0:02:10]} Re8 {[%emt 0:00:27]} 10. Bh2 {[%emt 0:01:17]} e5 {[%emt 0:01:33]} 11. Rc1 {[%emt 0:02:36]} Qe7 {[%emt 0:01:38]} 12. Qc2 {[%emt 0:05:37]} Rac8 {[%emt 0:07:44]} 13. Rfd1 {[%emt 0:04:00]} e4 {[%emt 0:03:28]} 14. Ne1 $1 {[%emt 0:00:09]} d5 {[%emt 0:00:08]} 15. b4 {[%emt 0:04:17]} a6 {[%emt 0:11:55]} 16. Qb3 {[%emt 0:03:36]} b5 {[%emt 0:03:24]} 17. a4 {[%emt 0:01:21]} c6 {[%emt 0:00:10]} 18. a5 {[%emt 0:00:04]} h6 {[%emt 0:02:23]} 19. Qb2 {[%emt 0:04:06]} Nh7 {[%emt 0:02:22]} 20. Nb3 {[%emt 0:00:13]} f5 {[%emt 0:00:29]} 21. Nc5 {[%emt 0:00:33]} Nxc5 {[%emt 0:00:29]} 22. dxc5 {[%emt 0:00:11]} Ng5 {[%emt 0:00:56]} 23. Nc2 {[%emt 0:01:10]} Ne6 {[%emt 0:01:53]} 24. Nd4 {[%emt 0:00:01]} Nxd4 {[%emt 0:00:58]} 25. cxd4 {[%emt 0:00:02]} Rcd8 {[%emt 0:00:41]} 26. Kh1 {[%emt 0:07:55]} Kh7 {[%emt 0:01:39]} 27. Rg1 {[%emt 0:00:36]} Bc8 {[%emt 0:00:50]} 28. g4 $2 {[%emt 0:02:29]} (28. Bd6 $14 {keeps the upper hand.} Qh4 29. Bg3) 28... Qh4 $17 {[%emt 0:02:53][%csl LRf2,LRh3]} 29. Rg3 {[%emt 0:01:02] [#]} Rf8 $1 {[%emt 0:03:01] Black is more active.} 30. gxf5 {[%emt 0:02:36]} Bxf5 {[%emt 0:00:48]} 31. Bg4 {[%emt 0:00:07]} (31. Bf1 $17 {is a better defense.}) 31... Bxg4 $19 {[%emt 0:01:31]} 32. hxg4 {[%emt 0:00:09]} Rf3 {[%emt 0:01:07]} 33. Rxf3 {[%emt 0:02:02]} exf3 {[%emt 0:02:38]} 34. Rg1 {[%emt 0:00:10]} Re8 {[%emt 0:00:27]} 35. Rg3 {[%emt 0:01:14][%cal Ob2a1]} Re4 {[%emt 0:00:49][%cal Og7d4]} 36. Rxf3 {[%emt 0:03:15]} (36. Qd2 {was the only chance.} Rxg4 37. Rxf3) 36... Qxg4 {[%emt 0:01:04]} ({Weaker is} 36... Rxg4 37. Qe2 $19) 37. Rf4 {[%emt 0:09:39] [#]} Bxd4 $1 {[%emt 0:07:23][%mdl 512]} 38. Qxd4 {[%emt 0:02:16]} (38. Rxg4 Bxb2) 38... Rxd4 {[%emt 0:00:43]} 39. Rxd4 {[%emt 0:00:05][%mdl 4096] Endgame KQ-KRB} Qf3+ {[%emt 0:00:14]} 40. Kg1 {[%emt 0:00:07]} g5 {[%emt 0:00:05] Prevents Rf4.} 41. e4 {[%emt 0:01:58]} dxe4 {[%emt 0:00:12]} 42. Rd7+ {[%emt 0:00:42]} Kg6 {[%emt 0:00:05] ( -> ...Qg4+)} 43. Rd6+ {[%emt 0:00:03]} Kh5 {[%emt 0:00:11] ...e3 is the strong threat.} 44. Be5 {[%emt 0:02:44]} e3 {[%emt 0:00:41]} 45. Bg7 {[%emt 0:01:16]} Qxf2+ {[%emt 0:00:45]} 46. Kh1 {[%emt 0:00:05]} e2 {[%emt 0:00:27]} 0-1

[Event "98th Caplin Hastings Masters 2024-25"]
[Site "Hastings"]
[Date "2024.12.31"]
[Round "6.11"]
[White "Briem, Benedikt"]
[Black "Boyer, Mahel"]
[Result "1-0"]
[ECO "A42"]
[WhiteElo "2132"]
[BlackElo "2526"]
[Annotator "TA"]
[PlyCount "73"]
[EventDate "2024.12.23"]
[EventType "swiss"]
[EventCountry "ENG"]
[SourceTitle "playchess.com"]
[Source "ChessBase"]
[SourceQuality "1"]
[TimeControl "5400+30"]

{[%evp 18,73,55,38,47,41,43,39,34,25,35,26,50,17,55,48,61,69,87,85,134,143,183,189,200,86,111,0,405,187,193,134,125,124,154,155,231,241,346,348,354,349,360,345,640,644,614,626,29955,5608,1920,1018,2406,2395,29984,29983,29990,4902]} 1. d4 {[%emt 0:00:24]} g6 {[%emt 0:06:23]} 2. c4 {[%emt 0:00:06]} Bg7 {[%emt 0:00:28]} 3. Nf3 {[%emt 0:00:03]} d6 {[%emt 0:00:08]} 4. e4 {[%emt 0:02:29]} e5 {[%emt 0:00:56]} 5. Be2 {[%emt 0:03:36]} exd4 {[%emt 0:01:50]} 6. Nxd4 {[%emt 0:00:37]} Nc6 {[%emt 0:01:26]} 7. Be3 {[%emt 0:04:32]} Nge7 {[%emt 0:00:07]} 8. Nc3 {[%emt 0:01:38]} O-O {[%emt 0:00:04]} 9. Qd2 {[%emt 0:04:12]} f5 {[%emt 0:02:22]} 10. exf5 {[%emt 0:15:48]} Nxf5 {[%emt 0:00:38]} 11. Nxf5 {[%emt 0:01:14]} Bxf5 {[%emt 0:00:05]} 12. Nd5 {[%emt 0:01:20]} Qd7 {[%emt 0:03:22] White is slightly better.} 13. O-O {[%emt 0:10:37]} Rae8 {[%emt 0:01:45]} 14. Rad1 {[%emt 0:00:48]} Nd8 {[%emt 0:08:50]} 15. Nf4 {[%emt 0:08:01][%cal Oc4c5]} (15. Bxa7 b6 16. Bf3 Be6 $15 (16... Nc6 17. Bxb6 Rb8 18. Bxc7 $16)) 15... Nf7 {[%emt 0:06:19]} 16. c5 {[%emt 0:03:17]} (16. Bxa7 $2 b6 17. Bf3 Qa4 18. Bxb6 (18. g4 $2 Be4 $19) 18... cxb6 $19) 16... b6 {[%emt 0:09:27]} 17. b4 {[%emt 0:02:34][%cal Bb2b4,Bb4c5][%mdl 32]} bxc5 {[%emt 0:00:43]} 18. bxc5 {[%emt 0:00:40]} Rb8 {[%emt 0:00:06]} ({Black should play} 18... Be5) 19. Bc4 $16 {[%emt 0:02:12]} Rb2 {[%emt 0:02:46]} 20. Qa5 {[%emt 0:01:51]} Kh8 {[%emt 0:04:18]} 21. Qxa7 {[%emt 0:04:42]} (21. Bb3 $1 $18 {has better winning chances.}) 21... Ne5 {[%emt 0:03:52]} 22. Bb3 {[%emt 0:01:22]} (22. Bd5 $1 $16) 22... Be4 $2 {[%emt 0:05:12][%mdl 8192]} (22... g5 $11 {and Black stays safe.} 23. Nh5 Bg4) 23. Be6 {[%emt 0:10:12]} (23. cxd6 $142 Bxg2 24. Be6 (24. Kxg2 Qg4+ 25. Kh1 cxd6 $18) (24. Nxg2 $2 Nf3+ 25. Kh1 Qh3 $19)) 23... Qd8 {[%emt 0:03:13]} 24. Bd5 {[%emt 0:02:34]} (24. Bh3 $18 {Threatens to win with Ne6.} Rb7 25. Qa6) 24... Bxd5 {[%emt 0:01:46]} 25. Nxd5 {[%emt 0:00:38]} Qh4 {[%emt 0:02:47]} 26. h3 {[%emt 0:02:03] Against Ng4} (26. Nxc7 $2 Ng4 27. h3 (27. cxd6 $2 Qxh2#) 27... Nxf2 28. Bxf2 Rbxf2 $19) 26... c6 {[%emt 0:00:49]} (26... Nf3+ $16 27. Kh1 (27. gxf3 Be5 $14) 27... Qe4) 27. Nc7 $1 $18 {[%emt 0:01:24]} Nf3+ {[%emt 0:07:18] [#]} (27... Qc4 {might work better.} 28. cxd6 (28. Rxd6 Qf7 $16) 28... Rxa2) 28. Kh1 $1 {[%emt 0:02:21]} (28. gxf3 Qxh3 29. Rxd6 (29. cxd6 $2 Rxf3 30. Qa8+ Bf8 $19) 29... Rb4 $11 (29... Be5 30. f4 $11)) 28... Qe4 {[%emt 0:00:11] Repels Ne6} 29. cxd6 {[%emt 0:13:45]} (29. gxf3 Rxf3 30. Qa8+ Bf8 (30... Rf8+ $2 31. Kg1 $19) 31. Bd4+ Kg8) 29... Nh4 {[%emt 0:01:12]} 30. Rg1 {[%emt 0:00:00]} Rf3 $2 {[%emt 0:02:52]} (30... Nxg2 31. Rxg2 Qf3) 31. Qa8+ {[%emt 0:00:00]} (31. gxf3 Qxf3+ 32. Kh2 Be5+) 31... Bf8 {[%emt 0:00:31]} 32. Qc8 {[%emt 0:00:00]} (32. gxf3 Qxf3+ 33. Kh2 Rxf2+ 34. Bxf2 Qxf2+ 35. Kh1 Qf3+ 36. Kh2 Qe2+ (36... Qf2+ 37. Kh1 $11) 37. Kh1 (37. Kg3 $2 Nf5+ 38. Kf4 Qe3+ 39. Kg4 h5#) 37... Qe4+ (37... Qf3+ 38. Kh2 $11) 38. Kh2 Qe2+ 39. Kh1 (39. Kg3 $2 Nf5+ 40. Kf4 Qe3+ 41. Kg4 h5#) 39... Qf3+ 40. Kh2 Qe2+ $11 (40... Qf2+ 41. Kh1 $11)) 32... Rfxf2 {[%emt 0:06:17]} 33. Bxf2 {[%emt 0:00:00]} Rxf2 {[%emt 0:00:02]} 34. Qg4 {[%emt 0:00:00]} Rf4 {[%emt 0:00:11]} 35. Qe6 {[%emt 0:00:00] d7 would now be deadly.} Qb4 {[%emt 0:10:34]} 36. d7 {[%emt 0:00:00]} Be7 {[%emt 0:00:24] [#]} 37. Qxe7 {[%emt 0:00:00] Weighted Error Value: White=0.32/Black=0.96.  Loses game:     	---       	Black=1      Mistake:       	White=4     	Black=4      Inaccurate:     	White=1     	Black=1      OK:         	White=8     	Black=6      Best:        	White=1     	Black=1      Strong:       	White=2     	---} 1-0

[Event "98th Caplin Hastings Masters 2024-25"]
[Site "Hastings"]
[Date "2024.12.31"]
[Round "6.12"]
[White "Gasanov, Eldar"]
[Black "Wall, Tim P"]
[Result "1/2-1/2"]
[ECO "E10"]
[WhiteElo "2476"]
[BlackElo "2173"]
[Annotator "TA"]
[PlyCount "57"]
[EventDate "2024.12.23"]
[EventType "swiss"]
[EventCountry "ENG"]
[SourceTitle "playchess.com"]
[Source "ChessBase"]
[SourceQuality "1"]
[TimeControl "5400+30"]

{[%evp 12,57,60,52,92,4,62,17,32,31,30,12,14,21,15,10,50,4,37,-31,-21,-52,55,-169,40,0,0,17,20,-8,88,72,41,0,0,0,0,0,-4,-18,-13,-84,-98,-93,-83,-90,-106,-205]} 1. d4 {[%emt 0:00:30]} Nf6 {[%emt 0:03:38]} 2. c4 {[%emt 0:00:26]} c5 {[%emt 0:00:10]} 3. d5 {[%emt 0:00:34]} b5 {[%emt 0:00:09]} 4. Nf3 {[%emt 0:01:07]} e6 {[%emt 0:01:17]} 5. dxe6 {[%emt 0:05:26]} fxe6 {[%emt 0:00:10]} 6. cxb5 {[%emt 0:00:06]} d5 {[%emt 0:00:23]} 7. Nc3 {[%emt 0:04:24][%cal Oe2e4]} Nbd7 {[%emt 0:04:10]} 8. g3 {[%emt 0:10:52]} (8. e4 $1 $16) 8... Bd6 {[%emt 0:06:04]} (8... d4 $11) 9. Bg2 {[%emt 0:05:05][%cal Oe2e4]} Bb7 {[%emt 0:00:36]} 10. O-O {[%emt 0:02:18]} O-O {[%emt 0:00:11]} 11. Ng5 {[%emt 0:10:38]} Qe7 {[%emt 0:04:32]} 12. b3 {[%emt 0:05:07]} h6 {[%emt 0:06:14][%cal Od6e5]} 13. Nh3 {[%emt 0:00:37]} Rad8 {[%emt 0:05:51]} 14. a4 {[%emt 0:09:55]} (14. Bf4 $14) 14... Qf7 {[%emt 0:13:53]} 15. a5 {[%emt 0:08:41]} ({White should play} 15. f3 $14) 15... Be5 $15 {[%emt 0:11:26]} 16. Bb2 {[%emt 0:02:25]} Ng4 {[%emt 0:04:24]} (16... d4 $1 $15 17. Nb1 (17. Bxb7 $2 dxc3 18. Ba3 Nb8 $19) 17... Bxg2 18. Kxg2 Ng4) 17. e3 $2 {[%emt 0:06:07] [#]} (17. Na4 $14 {stays ahead.}) 17... Ndf6 $2 {[%emt 0:06:05]} (17... Qh5 $1 $19 {[%cal Od5d4] aiming for ...d4!.} 18. Ra4 d4) 18. Na4 $14 {[%emt 0:04:23][%cal Ob2e5,Bc3a4,Ba4b2,Bb2d3,Bd3e1,Be1g2][%mdl 32]} Bxb2 {[%emt 0:15:32]} 19. Nxb2 {[%emt 0:00:09]} e5 {[%emt 0:00:44]} 20. Nd3 {[%emt 0:05:44]} (20. b6 {seems wilder.} d4 21. Bxb7 Qxb7 22. Nc4) 20... Qe7 {[%emt 0:04:32]} (20... d4 $11 21. e4 (21. Nxc5 $2 {too greedy.} Bxg2 22. Kxg2 Qd5+ 23. Qf3 Qxc5 $19) 21... Qh5) 21. Qc2 $16 {[%emt 0:01:49]} Rc8 {[%emt 0:00:34]} 22. Rac1 {[%emt 0:02:03]} c4 {[%emt 0:03:57]} 23. bxc4 {[%emt 0:03:21]} dxc4 {[%emt 0:00:06]} 24. Ne1 {[%emt 0:01:42]} Bxg2 {[%emt 0:01:29]} 25. Nxg2 {[%emt 0:00:18] Hoping for f3.} e4 {[%emt 0:02:30]} 26. f3 {[%emt 0:02:28]} (26. Nh4 $11 {remains equal.} Qc5 27. Nf4) 26... exf3 $17 {[%emt 0:00:24]} 27. Rxf3 {[%emt 0:00:07]} Ne5 {[%emt 0:00:17]} 28. Rff1 {[%emt 0:00:50]} Qb7 {[%emt 0:01:58][%mdl 1024] Black has strong compensation.} 29. Qa4 {[%emt 0:06:03]} (29. Nh4 $17) 1/2-1/2